[Event "Live Chess"]
[Site "Chess.com"]
[Date "2023.05.20"]
[Round "-"]
[White "AbilifyXL"]
[Black "RamsayFlayer"]
[Result "1-0"]
[WhiteElo "1963"]
[BlackElo "1989"]
[TimeControl "300"]
[EndTime "14:21:21 PDT"]
[Termination "AbilifyXL won on time"]

1. d4 {[%clk 0:04:59.1]} 1... d5 {[%clk 0:04:57]} 2. c4 {[%clk 0:04:56.3]} 2...
dxc4 {[%clk 0:04:55.8]} 3. Nc3 {[%clk 0:04:56.2]} 3... Nc6 {[%clk 0:04:53.8]} 4.
e3 {[%clk 0:04:55.3]} 4... e5 {[%clk 0:04:52.1]} 5. d5 {[%clk 0:04:52.3]} 5...
Nce7 {[%clk 0:04:49.1]} 6. Bxc4 {[%clk 0:04:51]} 6... c6 {[%clk 0:04:45.7]} 7.
e4 {[%clk 0:04:42]} 7... cxd5 {[%clk 0:04:40.8]} 8. exd5 {[%clk 0:04:41.3]} 8...
Nf6 {[%clk 0:04:34.4]} 9. Nf3 {[%clk 0:04:39.7]} 9... Ng6 {[%clk 0:04:26.9]} 10.
O-O {[%clk 0:04:36.8]} 10... Bc5 {[%clk 0:04:16.9]} 11. Re1 {[%clk 0:04:31.2]}
11... Ng4 {[%clk 0:04:01.7]} 12. Ne4 {[%clk 0:04:25.5]} 12... Bb6 {[%clk
0:03:47.7]} 13. h3 {[%clk 0:04:22.5]} 13... Nf6 {[%clk 0:03:41.2]} 14. Bb5+
{[%clk 0:04:19.7]} 14... Bd7 {[%clk 0:03:31.1]} 15. Nd6+ {[%clk 0:03:49.5]}
15... Ke7 {[%clk 0:03:24.6]} 16. Bxd7 {[%clk 0:03:44.4]} 16... Qxd7 {[%clk
0:02:57.2]} 17. Ne4 {[%clk 0:03:36]} 17... Qxd5 {[%clk 0:02:45.2]} 18. Bg5
{[%clk 0:03:19.7]} 18... Qxd1 {[%clk 0:02:33.2]} 19. Raxd1 {[%clk 0:03:10.9]}
19... h6 {[%clk 0:02:31.1]} 20. Bxf6+ {[%clk 0:03:02.5]} 20... gxf6 {[%clk
0:02:29.8]} 21. Nd6 {[%clk 0:02:57]} 21... Rhd8 {[%clk 0:02:09.9]} 22. Nf5+
{[%clk 0:02:54.6]} 22... Kf8 {[%clk 0:02:08.4]} 23. Nxh6 {[%clk 0:02:53]} 23...
Nf4 {[%clk 0:01:56.2]} 24. Ng4 {[%clk 0:02:42.1]} 24... Kg7 {[%clk 0:01:50.8]}
25. Nh4 {[%clk 0:02:30.7]} 25... Nd3 {[%clk 0:01:33.2]} 26. Re2 {[%clk 0:02:16]}
26... Nxf2 {[%clk 0:01:29.8]} 27. Rxd8 {[%clk 0:01:57.1]} 27... Nxg4+ {[%clk
0:01:27.5]} 28. Kf1 {[%clk 0:01:55.9]} 28... Nh2+ {[%clk 0:01:16.7]} 29. Ke1
{[%clk 0:01:52.9]} 29... Rxd8 {[%clk 0:01:09.6]} 30. g4 {[%clk 0:01:51.4]} 30...
Rd3 {[%clk 0:01:03.8]} 31. Rxh2 {[%clk 0:01:49.1]} 31... Ba5+ {[%clk 0:00:51]}
32. Kf1 {[%clk 0:01:42]} 32... Rd1+ {[%clk 0:00:50]} 33. Kg2 {[%clk 0:01:39.6]}
33... Rd2+ {[%clk 0:00:49.3]} 34. Kg3 {[%clk 0:01:37.1]} 34... Rxh2 {[%clk
0:00:48.7]} 35. Kxh2 {[%clk 0:01:36.1]} 35... Kh6 {[%clk 0:00:38.1]} 36. Nf5+
{[%clk 0:01:31.7]} 36... Kg5 {[%clk 0:00:31.4]} 37. Nd6 {[%clk 0:01:30.8]} 37...
b6 {[%clk 0:00:22.4]} 38. Nxf7+ {[%clk 0:01:29.3]} 38... Kf4 {[%clk 0:00:21.3]}
39. Kg2 {[%clk 0:01:27.5]} 39... Be1 {[%clk 0:00:18.3]} 40. Nd8 {[%clk 0:01:15]}
40... Bh4 {[%clk 0:00:12.6]} 41. Ne6+ {[%clk 0:01:11.4]} 41... Ke4 {[%clk
0:00:11.5]} 42. Nd8 {[%clk 0:01:07.3]} 42... f5 {[%clk 0:00:10.5]} 43. Nc6
{[%clk 0:01:05.7]} 43... fxg4 {[%clk 0:00:09.4]} 44. hxg4 {[%clk 0:01:05.6]}
44... Kf4 {[%clk 0:00:07.2]} 45. Kh3 {[%clk 0:01:02.3]} 45... Bf6 {[%clk
0:00:03.4]} 46. Nxa7 {[%clk 0:00:58.6]} 46... e4 {[%clk 0:00:02.7]} 47. Nb5
{[%clk 0:00:55.3]} 47... Bxb2 {[%clk 0:00:02]} 48. Nd6 {[%clk 0:00:48.4]} 48...
e3 {[%clk 0:00:01.2]} 49. Nc4 {[%clk 0:00:47.4]} 49... e2 {[%clk 0:00:00.4]} 50.
Nxb2 {[%clk 0:00:44.7]} 50... e1=Q {[%clk 0:00:00.3]} 51. Nd3+ {[%clk 0:00:44]}
1-0

[Event "Live Chess"]
[Site "Chess.com"]
[Date "2023.05.20"]
[Round "-"]
[White "JohanKjeldahl"]
[Black "Wild_Tiger"]
[Result "1-0"]
[WhiteElo "1852"]
[BlackElo "1072"]
[TimeControl "300"]
[EndTime "14:21:31 PDT"]
[Termination "JohanKjeldahl won on time"]

1. e4 {[%clk 0:04:58.3]} 1... e5 {[%clk 0:04:58.6]} 2. Nf3 {[%clk 0:04:57]} 2...
Nc6 {[%clk 0:04:56.1]} 3. d4 {[%clk 0:04:55.7]} 3... exd4 {[%clk 0:04:54.1]} 4.
c3 {[%clk 0:04:54.9]} 4... dxc3 {[%clk 0:04:52.6]} 5. Bc4 {[%clk 0:04:53.9]}
5... Bb4 {[%clk 0:04:44.9]} 6. O-O {[%clk 0:04:47.4]} 6... d6 {[%clk 0:04:33.4]}
7. Nxc3 {[%clk 0:04:41.9]} 7... Bxc3 {[%clk 0:04:30.9]} 8. bxc3 {[%clk 0:04:40]}
8... Nge7 {[%clk 0:04:25.9]} 9. Bg5 {[%clk 0:04:37.2]} 9... O-O {[%clk
0:04:23.9]} 10. Qe2 {[%clk 0:04:25.4]} 10... Bg4 {[%clk 0:04:21.6]} 11. h3
{[%clk 0:04:23]} 11... Bxf3 {[%clk 0:04:06.1]} 12. gxf3 {[%clk 0:04:22]} 12...
Kh8 {[%clk 0:03:56.6]} 13. Rab1 {[%clk 0:04:16.5]} 13... b6 {[%clk 0:03:53.9]}
14. Bd5 {[%clk 0:04:13.3]} 14... Rb8 {[%clk 0:03:46]} 15. Bxc6 {[%clk
0:04:10.8]} 15... f6 {[%clk 0:03:43.1]} 16. Bxf6 {[%clk 0:04:04.4]} 16... Rxf6
{[%clk 0:03:40.4]} 17. Ba4 {[%clk 0:04:02.1]} 17... Rh6 {[%clk 0:03:31.4]} 18.
Kh2 {[%clk 0:03:57.2]} 18... Ng6 {[%clk 0:03:30.2]} 19. Rg1 {[%clk 0:03:53.6]}
19... Nf4 {[%clk 0:03:17.7]} 20. Qf1 {[%clk 0:03:52.4]} 20... Qf6 {[%clk
0:03:00.6]} 21. Rg3 {[%clk 0:03:47.1]} 21... Qxc3 {[%clk 0:02:46.6]} 22. Rc1
{[%clk 0:03:37]} 22... Qd4 {[%clk 0:02:23.1]} 23. Bd7 {[%clk 0:03:32.3]} 23...
c5 {[%clk 0:02:12.8]} 24. Rd1 {[%clk 0:03:27.5]} 24... Qe5 {[%clk 0:02:09.4]}
25. Bg4 {[%clk 0:03:23.4]} 25... Rg6 {[%clk 0:01:56.7]} 26. Qa6 {[%clk
0:03:16.2]} 26... Qe7 {[%clk 0:01:38.4]} 27. Qc4 {[%clk 0:02:58]} 27... b5
{[%clk 0:01:33.9]} 28. Qc1 {[%clk 0:02:56.7]} 28... a6 {[%clk 0:01:30.4]} 29.
Qxf4 {[%clk 0:02:54.8]} 29... Rd8 {[%clk 0:01:17.7]} 30. e5 {[%clk 0:02:51.6]}
30... d5 {[%clk 0:01:15.6]} 31. e6 {[%clk 0:02:30.3]} 31... Rf6 {[%clk
0:01:08.2]} 32. Qe5 {[%clk 0:02:25.5]} 32... d4 {[%clk 0:01:03.2]} 33. f4 {[%clk
0:02:18.7]} 33... g6 {[%clk 0:00:43.2]} 34. f5 {[%clk 0:02:13.6]} 34... h5
{[%clk 0:00:39.1]} 35. Bxh5 {[%clk 0:02:04.7]} 35... gxh5 {[%clk 0:00:19]} 36.
Rg6 {[%clk 0:02:03.6]} 36... Rf8 {[%clk 0:00:15.4]} 37. Rdg1 {[%clk 0:02:01.6]}
37... Kh7 {[%clk 0:00:06.6]} 38. R1g5 {[%clk 0:01:53.9]} 1-0

[Event "Live Chess"]
[Site "Chess.com"]
[Date "2023.05.20"]
[Round "-"]
[White "lucaskk818"]
[Black "EdenHazard8"]
[Result "1-0"]
[WhiteElo "1898"]
[BlackElo "2048"]
[TimeControl "300"]
[EndTime "14:21:40 PDT"]
[Termination "lucaskk818 won by resignation"]

1. d4 {[%clk 0:04:58.6]} 1... e6 {[%clk 0:04:56]} 2. c4 {[%clk 0:04:57.9]} 2...
f5 {[%clk 0:04:55.6]} 3. Nc3 {[%clk 0:04:55.3]} 3... Nf6 {[%clk 0:04:54.4]} 4.
g3 {[%clk 0:04:54.1]} 4... Bb4 {[%clk 0:04:53.9]} 5. Bg2 {[%clk 0:04:51.9]} 5...
O-O {[%clk 0:04:52.1]} 6. Nf3 {[%clk 0:04:51.3]} 6... d6 {[%clk 0:04:50.7]} 7.
O-O {[%clk 0:04:50.4]} 7... Bxc3 {[%clk 0:04:46.9]} 8. bxc3 {[%clk 0:04:48.7]}
8... Qe8 {[%clk 0:04:46.2]} 9. Bg5 {[%clk 0:04:38.7]} 9... e5 {[%clk 0:04:42.5]}
10. c5 {[%clk 0:04:32.4]} 10... Nc6 {[%clk 0:04:37.6]} 11. cxd6 {[%clk
0:04:28.4]} 11... cxd6 {[%clk 0:04:36.4]} 12. dxe5 {[%clk 0:04:20.2]} 12... dxe5
{[%clk 0:04:34.7]} 13. Bxf6 {[%clk 0:03:55]} 13... Rxf6 {[%clk 0:04:32.2]} 14.
Qb3+ {[%clk 0:03:38]} 14... Kh8 {[%clk 0:04:27.9]} 15. Ng5 {[%clk 0:03:27.2]}
15... e4 {[%clk 0:04:11]} 16. e3 {[%clk 0:03:21.8]} 16... Ne5 {[%clk 0:04:08.7]}
17. Rfd1 {[%clk 0:03:10.4]} 17... Bd7 {[%clk 0:03:51.2]} 18. Qxb7 {[%clk
0:02:51.9]} 18... Rb6 {[%clk 0:03:43.9]} 19. Qd5 {[%clk 0:02:45.7]} 19... Rd8
{[%clk 0:03:27.9]} 20. c4 {[%clk 0:02:22]} 20... Ng4 {[%clk 0:03:18.2]} 21. Nf7+
{[%clk 0:02:14.6]} 1-0

[Event "Live Chess"]
[Site "Chess.com"]
[Date "2023.05.20"]
[Round "-"]
[White "hturner40"]
[Black "LiamClery2020"]
[Result "1/2-1/2"]
[WhiteElo "1814"]
[BlackElo "2080"]
[TimeControl "300"]
[EndTime "14:21:40 PDT"]
[Termination "Game drawn by agreement"]

1. Nf3 {[%clk 0:04:57.2]} 1... Nf6 {[%clk 0:04:59.1]} 2. g3 {[%clk 0:04:55.9]}
2... e6 {[%clk 0:04:57.6]} 3. Bg2 {[%clk 0:04:54.9]} 3... d5 {[%clk 0:04:57.2]}
4. O-O {[%clk 0:04:53.6]} 4... Be7 {[%clk 0:04:56.8]} 5. c4 {[%clk 0:04:51.1]}
5... O-O {[%clk 0:04:55.3]} 6. d4 {[%clk 0:04:50]} 6... a6 {[%clk 0:04:53.2]} 7.
Nbd2 {[%clk 0:04:46]} 7... dxc4 {[%clk 0:04:50.8]} 8. Nxc4 {[%clk 0:04:44.3]}
8... b5 {[%clk 0:04:50.2]} 9. Nfe5 {[%clk 0:04:37.8]} 9... Ra7 {[%clk
0:04:47.1]} 10. Ne3 {[%clk 0:04:33.2]} 10... c5 {[%clk 0:04:44.8]} 11. dxc5
{[%clk 0:04:17.5]} 11... Qxd1 {[%clk 0:04:43.4]} 12. Rxd1 {[%clk 0:04:15.2]}
12... Bxc5 {[%clk 0:04:43.3]} 13. N3g4 {[%clk 0:04:03.5]} 13... Nxg4 {[%clk
0:04:37]} 14. Nxg4 {[%clk 0:03:59.9]} 14... Bb7 {[%clk 0:04:35.2]} 15. Be3
{[%clk 0:03:43.1]} 15... Bxe3 {[%clk 0:04:31.4]} 16. Nxe3 {[%clk 0:03:39]} 16...
Bxg2 {[%clk 0:04:30.6]} 17. Kxg2 {[%clk 0:03:37.5]} 17... Nc6 {[%clk 0:04:30.5]}
18. Rac1 {[%clk 0:03:30.3]} 18... Ne7 {[%clk 0:04:24.7]} 19. Rd6 {[%clk
0:03:23.1]} 19... g6 {[%clk 0:04:17]} 20. Ng4 {[%clk 0:03:11.4]} 20... Kg7
{[%clk 0:04:15.9]} 21. Ne5 {[%clk 0:03:06.5]} 21... Nf5 {[%clk 0:04:13.9]} 22.
Rdc6 {[%clk 0:02:52.2]} 22... Rd8 {[%clk 0:04:07.7]} 23. Rc7 {[%clk 0:02:49.6]}
23... Rxc7 {[%clk 0:03:58.2]} 24. Rxc7 {[%clk 0:02:46.9]} 24... Rf8 {[%clk
0:03:57]} 1/2-1/2

[Event "Live Chess"]
[Site "Chess.com"]
[Date "2023.05.20"]
[Round "-"]
[White "FlyingChessKestrel13"]
[Black "wadsy27"]
[Result "0-1"]
[WhiteElo "2110"]
[BlackElo "2556"]
[TimeControl "300"]
[EndTime "14:21:54 PDT"]
[Termination "wadsy27 won by resignation"]

1. e4 {[%clk 0:04:56.4]} 1... c5 {[%clk 0:04:54.3]} 2. Nc3 {[%clk 0:04:53.6]}
2... e6 {[%clk 0:04:50.8]} 3. d3 {[%clk 0:04:51]} 3... Nc6 {[%clk 0:04:48.8]} 4.
g3 {[%clk 0:04:49.8]} 4... Nf6 {[%clk 0:04:47.6]} 5. Bg2 {[%clk 0:04:48.7]} 5...
Be7 {[%clk 0:04:45.8]} 6. Nge2 {[%clk 0:04:47.5]} 6... O-O {[%clk 0:04:43]} 7.
O-O {[%clk 0:04:46.6]} 7... d5 {[%clk 0:04:41.7]} 8. exd5 {[%clk 0:04:35.5]}
8... exd5 {[%clk 0:04:41.6]} 9. Nf4 {[%clk 0:04:34.4]} 9... Bg4 {[%clk
0:04:33.7]} 10. f3 {[%clk 0:04:27.8]} 10... Bc8 {[%clk 0:04:22.8]} 11. Bd2
{[%clk 0:04:25.3]} 11... d4 {[%clk 0:04:20.1]} 12. Ne4 {[%clk 0:04:22.8]} 12...
b6 {[%clk 0:04:08.9]} 13. Nh3 {[%clk 0:04:16.8]} 13... Nxe4 {[%clk 0:03:58.9]}
14. fxe4 {[%clk 0:04:14.4]} 14... Bxh3 {[%clk 0:03:57.4]} 15. Bxh3 {[%clk
0:04:11.4]} 15... Bg5 {[%clk 0:03:48.7]} 16. Bg2 {[%clk 0:03:58.7]} 16... Bxd2
{[%clk 0:03:44.6]} 17. Qxd2 {[%clk 0:03:56.6]} 17... Ne5 {[%clk 0:03:42.5]} 18.
h3 {[%clk 0:03:49.5]} 18... Qe7 {[%clk 0:03:25.6]} 19. a4 {[%clk 0:03:32]} 19...
a6 {[%clk 0:03:18.7]} 20. Rf5 {[%clk 0:03:19.3]} 20... Rad8 {[%clk 0:03:13.7]}
21. Raf1 {[%clk 0:03:16]} 21... Rd6 {[%clk 0:03:05.3]} 22. Kh2 {[%clk
0:03:13.5]} 22... g6 {[%clk 0:02:57.2]} 23. R5f4 {[%clk 0:03:05.1]} 23... f6
{[%clk 0:02:54.2]} 24. b3 {[%clk 0:02:41.3]} 24... Kg7 {[%clk 0:02:45.1]} 25. h4
{[%clk 0:02:15.1]} 25... h5 {[%clk 0:02:42.9]} 26. Bh3 {[%clk 0:02:13.6]} 26...
b5 {[%clk 0:02:36.2]} 27. a5 {[%clk 0:02:10.4]} 27... Qc7 {[%clk 0:02:31.8]} 28.
Kh1 {[%clk 0:01:55.9]} 28... c4 {[%clk 0:02:24.3]} 29. bxc4 {[%clk 0:01:53]}
29... bxc4 {[%clk 0:02:23.4]} 30. g4 {[%clk 0:01:52.1]} 30... hxg4 {[%clk
0:02:18.9]} 31. Bxg4 {[%clk 0:01:50.5]} 31... cxd3 {[%clk 0:02:14.3]} 32. cxd3
{[%clk 0:01:48.8]} 32... Qc3 {[%clk 0:02:13.8]} 33. Qxc3 {[%clk 0:01:31.3]}
33... dxc3 {[%clk 0:02:12.4]} 34. Be2 {[%clk 0:01:30]} 34... c2 {[%clk
0:02:09.1]} 35. Rc1 {[%clk 0:01:25.9]} 35... Rc8 {[%clk 0:02:08.2]} 36. Rf2
{[%clk 0:01:19.7]} 36... Nxd3 {[%clk 0:01:49]} 37. Bxd3 {[%clk 0:01:17.1]} 37...
Rxd3 {[%clk 0:01:48.6]} 38. Rfxc2 {[%clk 0:01:16]} 38... Rxc2 {[%clk 0:01:48.3]}
39. Rxc2 {[%clk 0:01:14]} 39... Rh3+ {[%clk 0:01:47.6]} 40. Kg2 {[%clk
0:01:12.8]} 40... Rxh4 {[%clk 0:01:46.8]} 41. Kf3 {[%clk 0:01:11.4]} 41... Rh3+
{[%clk 0:01:43.3]} 42. Kg4 {[%clk 0:01:04.7]} 42... Ra3 {[%clk 0:01:39.9]} 43.
Rc7+ {[%clk 0:01:01]} 43... Kh6 {[%clk 0:01:38.6]} 44. Rc6 {[%clk 0:00:58.3]}
44... Rxa5 {[%clk 0:01:37]} 45. Rxf6 {[%clk 0:00:57.2]} 45... Ra1 {[%clk
0:01:36.2]} 46. e5 {[%clk 0:00:53.8]} 46... a5 {[%clk 0:01:33.7]} 47. Ra6 {[%clk
0:00:52.4]} 47... a4 {[%clk 0:01:27.7]} 48. e6 {[%clk 0:00:40.7]} 48... Kg7
{[%clk 0:01:23.8]} 49. e7 {[%clk 0:00:38.4]} 49... Kf7 {[%clk 0:01:23.1]} 50.
Kf4 {[%clk 0:00:16.3]} 50... a3 {[%clk 0:01:19.6]} 51. Kf3 {[%clk 0:00:15.6]}
51... a2 {[%clk 0:01:18.7]} 52. Ke2 {[%clk 0:00:13.9]} 52... Rh1 {[%clk
0:01:16.3]} 0-1

[Event "Live Chess"]
[Site "Chess.com"]
[Date "2023.05.20"]
[Round "-"]
[White "Stanbad1"]
[Black "Jeffaroow"]
[Result "1-0"]
[WhiteElo "2393"]
[BlackElo "505"]
[TimeControl "300"]
[EndTime "14:22:11 PDT"]
[Termination "Stanbad1 won by resignation"]

1. d4 {[%clk 0:04:56.7]} 1... d5 {[%clk 0:04:56.8]} 2. Nc3 {[%clk 0:04:55.2]}
2... Nf6 {[%clk 0:04:55.2]} 3. Bf4 {[%clk 0:04:54.6]} 3... e6 {[%clk 0:04:51.9]}
4. e3 {[%clk 0:04:53.6]} 4... Na6 {[%clk 0:04:46.2]} 5. Bxa6 {[%clk 0:04:51.7]}
5... bxa6 {[%clk 0:04:44.4]} 6. Nf3 {[%clk 0:04:50.7]} 6... Ne4 {[%clk
0:04:41.7]} 7. Nxe4 {[%clk 0:04:48.3]} 7... dxe4 {[%clk 0:04:40.6]} 8. Nd2
{[%clk 0:04:47.8]} 8... Bd6 {[%clk 0:04:31.7]} 9. Bxd6 {[%clk 0:04:43.5]} 9...
Qxd6 {[%clk 0:04:23.5]} 10. Nxe4 {[%clk 0:04:41]} 10... Qb4+ {[%clk 0:04:21.2]}
11. Qd2 {[%clk 0:04:39.1]} 11... Qxb2 {[%clk 0:04:18.1]} 12. O-O {[%clk
0:04:37.6]} 12... f5 {[%clk 0:04:11.9]} 13. Nc5 {[%clk 0:04:35.2]} 13... O-O
{[%clk 0:04:06.4]} 14. Rfb1 {[%clk 0:04:32.9]} 14... Qa3 {[%clk 0:03:55.5]} 15.
Rb3 {[%clk 0:04:31.2]} 15... Qxb3 {[%clk 0:03:31.5]} 16. axb3 {[%clk 0:04:28.5]}
1-0

[Event "Live Chess"]
[Site "Chess.com"]
[Date "2023.05.20"]
[Round "-"]
[White "JoeRoot66"]
[Black "weibs440"]
[Result "1-0"]
[WhiteElo "1910"]
[BlackElo "943"]
[TimeControl "300"]
[EndTime "14:22:24 PDT"]
[Termination "JoeRoot66 won by resignation"]

1. e4 {[%clk 0:04:59.4]} 1... d6 {[%clk 0:04:58.8]} 2. d4 {[%clk 0:04:58.3]}
2... Nf6 {[%clk 0:04:57.7]} 3. Bd3 {[%clk 0:04:57.4]} 3... Nbd7 {[%clk
0:04:55.3]} 4. Nf3 {[%clk 0:04:54.9]} 4... e5 {[%clk 0:04:52.3]} 5. c3 {[%clk
0:04:54.1]} 5... Be7 {[%clk 0:04:49.9]} 6. O-O {[%clk 0:04:52.5]} 6... c6 {[%clk
0:04:49]} 7. Nbd2 {[%clk 0:04:47.2]} 7... Qc7 {[%clk 0:04:46.9]} 8. Nc4 {[%clk
0:04:43.2]} 8... b5 {[%clk 0:04:23.6]} 9. dxe5 {[%clk 0:04:39.4]} 9... bxc4
{[%clk 0:04:12.4]} 10. exf6 {[%clk 0:04:38.1]} 10... Nxf6 {[%clk 0:03:42.2]} 11.
Bxc4 {[%clk 0:04:32.5]} 11... Nxe4 {[%clk 0:03:39.3]} 12. Qa4 {[%clk 0:04:17.5]}
12... Nc5 {[%clk 0:03:31.3]} 13. Qc2 {[%clk 0:04:10.9]} 13... O-O {[%clk
0:03:27.7]} 14. b4 {[%clk 0:04:07.2]} 14... Ne6 {[%clk 0:03:15.9]} 15. Re1
{[%clk 0:03:52.7]} 15... d5 {[%clk 0:03:09.3]} 16. Bd3 {[%clk 0:03:51.2]} 16...
Bd7 {[%clk 0:02:57]} 17. Bxh7+ {[%clk 0:03:49]} 17... Kh8 {[%clk 0:02:53.4]} 18.
Qf5 {[%clk 0:03:43.5]} 18... Ng5 {[%clk 0:02:12.5]} 19. Rxe7 {[%clk 0:03:36.4]}
19... Bxf5 {[%clk 0:01:53.7]} 20. Rxc7 {[%clk 0:03:34]} 20... Bxh7 {[%clk
0:01:50.1]} 21. Nxg5 {[%clk 0:03:31]} 21... Rae8 {[%clk 0:01:44.5]} 22. Be3
{[%clk 0:03:24.7]} 22... Bg6 {[%clk 0:01:19.9]} 23. Bc5 {[%clk 0:03:08.9]} 23...
Rc8 {[%clk 0:00:48.4]} 24. Rxc8 {[%clk 0:02:56.9]} 24... Rxc8 {[%clk 0:00:47.1]}
25. Re1 {[%clk 0:02:56.8]} 25... f6 {[%clk 0:00:41.8]} 26. Ne6 {[%clk
0:02:50.7]} 26... Re8 {[%clk 0:00:34.7]} 27. Re2 {[%clk 0:02:38.5]} 27... Bf7
{[%clk 0:00:23.1]} 28. Nd4 {[%clk 0:02:36]} 28... Rxe2 {[%clk 0:00:10.2]} 29.
Nxe2 {[%clk 0:02:35.9]} 29... Bg6 {[%clk 0:00:09.2]} 30. Nd4 {[%clk 0:02:34.6]}
30... Bd3 {[%clk 0:00:07.7]} 31. Nxc6 {[%clk 0:02:33.2]} 1-0

[Event "Live Chess"]
[Site "Chess.com"]
[Date "2023.05.20"]
[Round "-"]
[White "Richardallis"]
[Black "chessfiction"]
[Result "1/2-1/2"]
[WhiteElo "1900"]
[BlackElo "2355"]
[TimeControl "300"]
[EndTime "14:22:33 PDT"]
[Termination "Game drawn by repetition"]

1. d4 {[%clk 0:04:58]} 1... d5 {[%clk 0:04:58.7]} 2. Nf3 {[%clk 0:04:57.3]} 2...
e5 {[%clk 0:04:57.7]} 3. dxe5 {[%clk 0:04:55.4]} 3... f6 {[%clk 0:04:56.2]} 4.
exf6 {[%clk 0:04:53.4]} 4... Nxf6 {[%clk 0:04:56.1]} 5. Bg5 {[%clk 0:04:52.3]}
5... Bd6 {[%clk 0:04:54.5]} 6. e3 {[%clk 0:04:51.1]} 6... Nc6 {[%clk 0:04:53]}
7. c3 {[%clk 0:04:49.3]} 7... Bg4 {[%clk 0:04:51.2]} 8. Be2 {[%clk 0:04:45.4]}
8... Qd7 {[%clk 0:04:45.9]} 9. Bxf6 {[%clk 0:04:40.8]} 9... gxf6 {[%clk
0:04:42.2]} 10. Qxd5 {[%clk 0:04:40]} 10... O-O-O {[%clk 0:04:39.6]} 11. Nbd2
{[%clk 0:04:37.7]} 11... Rhe8 {[%clk 0:04:33]} 12. Bb5 {[%clk 0:04:33.1]} 12...
Kb8 {[%clk 0:04:24.9]} 13. Bxc6 {[%clk 0:04:26.9]} 13... bxc6 {[%clk 0:04:24.8]}
14. Qa5 {[%clk 0:04:25.9]} 14... Qe7 {[%clk 0:04:15.7]} 15. Nd4 {[%clk
0:04:24.4]} 15... Bd7 {[%clk 0:04:10.6]} 16. Qa6 {[%clk 0:04:22.8]} 16... Bc5
{[%clk 0:04:07.5]} 17. Nxc6+ {[%clk 0:04:18.4]} 17... Bxc6 {[%clk 0:04:07.4]}
18. Qxc6 {[%clk 0:04:17.1]} 18... Bxe3 {[%clk 0:04:06.4]} 19. O-O-O {[%clk
0:04:01.7]} 19... Bf4 {[%clk 0:03:19.4]} 20. Qb5+ {[%clk 0:03:58.1]} 20... Kc8
{[%clk 0:03:18.3]} 21. Qa6+ {[%clk 0:03:54.5]} 21... Kb8 {[%clk 0:03:12.5]} 22.
Qb5+ {[%clk 0:03:53]} 22... Ka8 {[%clk 0:03:10.2]} 23. Qc6+ {[%clk 0:03:49.5]}
23... Kb8 {[%clk 0:03:09.4]} 24. Qb5+ {[%clk 0:03:48.8]} 1/2-1/2

[Event "Live Chess"]
[Site "Chess.com"]
[Date "2023.05.20"]
[Round "-"]
[White "nigelst"]
[Black "WelshTiger"]
[Result "0-1"]
[WhiteElo "1819"]
[BlackElo "2385"]
[TimeControl "300"]
[EndTime "14:22:34 PDT"]
[Termination "WelshTiger won by resignation"]

1. e4 {[%clk 0:04:58.5]} 1... c5 {[%clk 0:04:55.9]} 2. Nf3 {[%clk 0:04:57]} 2...
d6 {[%clk 0:04:55.4]} 3. Bb5+ {[%clk 0:04:55.4]} 3... Nd7 {[%clk 0:04:51.7]} 4.
O-O {[%clk 0:04:53.4]} 4... a6 {[%clk 0:04:50]} 5. Bxd7+ {[%clk 0:04:49.2]} 5...
Bxd7 {[%clk 0:04:49.9]} 6. c3 {[%clk 0:04:48.2]} 6... Bg4 {[%clk 0:04:40.7]} 7.
d4 {[%clk 0:04:46.2]} 7... Qc7 {[%clk 0:04:36.4]} 8. h3 {[%clk 0:04:41]} 8...
Bh5 {[%clk 0:04:33.7]} 9. Be3 {[%clk 0:04:39.8]} 9... b6 {[%clk 0:04:28.2]} 10.
Nbd2 {[%clk 0:04:37.7]} 10... Nf6 {[%clk 0:04:25.9]} 11. Qb3 {[%clk 0:04:19]}
11... e6 {[%clk 0:04:23.3]} 12. Rac1 {[%clk 0:04:07.4]} 12... Be7 {[%clk
0:04:21.5]} 13. e5 {[%clk 0:03:46.2]} 13... dxe5 {[%clk 0:04:19.3]} 14. Nxe5
{[%clk 0:03:43.1]} 14... O-O {[%clk 0:04:15.1]} 15. Ndf3 {[%clk 0:03:35.3]}
15... Nd5 {[%clk 0:04:09.6]} 16. g4 {[%clk 0:03:23.7]} 16... Bg6 {[%clk
0:04:07.9]} 17. Nxg6 {[%clk 0:03:18.6]} 17... hxg6 {[%clk 0:04:07.8]} 18. Ne5
{[%clk 0:03:16.5]} 18... Bd6 {[%clk 0:04:03.8]} 19. Rfe1 {[%clk 0:02:55.4]}
19... Rac8 {[%clk 0:03:54]} 20. Qa4 {[%clk 0:02:46.1]} 20... Bxe5 {[%clk
0:03:46.4]} 21. dxe5 {[%clk 0:02:44]} 21... Qb7 {[%clk 0:03:38.4]} 22. Qd1
{[%clk 0:02:24.6]} 22... Rfd8 {[%clk 0:03:17.3]} 23. Qe2 {[%clk 0:02:21.6]}
23... b5 {[%clk 0:03:13.8]} 24. b3 {[%clk 0:02:07]} 24... c4 {[%clk 0:03:12.7]}
25. b4 {[%clk 0:02:03.2]} 25... Rd7 {[%clk 0:03:07.9]} 26. Bd4 {[%clk
0:02:01.1]} 26... Nxb4 {[%clk 0:03:02.9]} 27. h4 {[%clk 0:01:34.5]} 27... Nd3
{[%clk 0:03:00.1]} 28. Rcd1 {[%clk 0:01:31.4]} 28... Nxe1 {[%clk 0:02:56.9]} 29.
Qxe1 {[%clk 0:01:30.6]} 29... Rcd8 {[%clk 0:02:55.2]} 30. Qe3 {[%clk 0:01:25.8]}
30... b4 {[%clk 0:02:51.7]} 31. Rb1 {[%clk 0:01:19.5]} 31... a5 {[%clk
0:02:47.2]} 32. h5 {[%clk 0:01:17.6]} 32... gxh5 {[%clk 0:02:44.9]} 33. gxh5
{[%clk 0:01:15.6]} 33... Rxd4 {[%clk 0:02:37.6]} 34. cxd4 {[%clk 0:01:13]} 34...
c3 {[%clk 0:02:36.8]} 35. h6 {[%clk 0:01:06.9]} 35... Qd5 {[%clk 0:02:24]} 36.
hxg7 {[%clk 0:01:00.1]} 36... Qxd4 {[%clk 0:02:15.6]} 37. Qh6 {[%clk 0:00:50.7]}
37... Qg4+ {[%clk 0:02:14.4]} 38. Kf1 {[%clk 0:00:47.8]} 38... Qxg7 {[%clk
0:02:12.8]} 39. Qh4 {[%clk 0:00:46.4]} 39... Rd2 {[%clk 0:02:01.3]} 40. Qe4
{[%clk 0:00:19.4]} 40... Qg6 {[%clk 0:01:53.5]} 41. Qa8+ {[%clk 0:00:17.3]}
41... Kg7 {[%clk 0:01:52.8]} 42. Qf3 {[%clk 0:00:14.2]} 42... Qxb1+ {[%clk
0:01:51]} 0-1